[Event "45th FIDE Olympiad 2024"]
[Site "Budapest"]
[Date "2024.09.15"]
[Round "5.71"]
[White "Wong, Kai Meng"]
[Black "Pesqueira, Jose"]
[Result "1-0"]
[ECO "D46"]
[WhiteElo "1795"]
[BlackElo "1880"]
[PlyCount "63"]
[EventDate "2024.09.05"]
[EventType "team-tourn"]
[EventCountry "HUN"]
[WhiteTeam "Macau"]
[BlackTeam "Aruba"]
[WhiteTeamCountry "MAC"]
[BlackTeamCountry "ARN"]
[TimeControl "40/5400+30:1800+30"]

1. d4 d5 2. c4 c6 3. Nc3 Nf6 4. Nf3 a6 5. e3 e6 6. Bd3 Nbd7 7. O-O Bd6 8. Re1 O-O 9. e4 dxe4 10. Nxe4 Nxe4 11. Bxe4 Nf6 12. Bg5 h6 13. Bh4 Be7 14. Bc2 g6 15. Qd3 Nh5 16. Bg3 Nxg3 17. hxg3 Bf6 18. Ne5 Bxe5 19. Rxe5 Qf6 20. Qe3 Kg7 21. f4 Bd7 22. Rf1 Rad8 23. g4 Qh4 24. f5 exf5 25. gxf5 Bxf5 26. Bxf5 gxf5 27. Rf4 Qh5 28. Rexf5 Qg6 29. Qf3 Qe6 30. Rf6 Qxc4 31. Rg4+ Kh7 32. Rxh6+ 1-0

[Event "45th FIDE Olympiad 2024"]
[Site "Budapest"]
[Date "2024.09.15"]
[Round "5.72"]
[White "Lopez Silva, Hugo"]
[Black "Papp, Gabor"]
[Result "0-1"]
[ECO "B33"]
[WhiteElo "2379"]
[BlackElo "2550"]
[Annotator "TA"]
[PlyCount "102"]
[EventDate "2024.09.05"]
[EventType "team-tourn"]
[EventCountry "HUN"]
[SourceTitle "playchess.com"]
[Source "ChessBase"]
[SourceQuality "1"]
[WhiteTeam "Chile"]
[BlackTeam "Hungary B"]
[WhiteTeamCountry "CHI"]
[TimeControl "40/5400+30:1800+30"]

{[%evp 23,102,4,15,9,3,0,10,20,11,16,13,7,30,18,40,39,45,0,113,113,146,0,0,0,0,0,0,-214,0,-87,-77,-81,-69,-110,-23,-22,-23,-21,0,-56,-55,-58,-25,-22,-8,-46,-8,-8,-8,-8,-8,-8,0,0,0,0,0,0,0,-19,-15,-17,-12,-22,-24,-30,-29,-56,-45,-53,-33,-39,-11,-67,-41,-41,-41,-41,-14,-1592,-981]} 1. e4 c5 2. Nf3 {[%cal Bg1f3,Bf3d4,Bd4b5,Bb5a3,Ba3c2][%mdl 32]} Nc6 3. d4 cxd4 4. Nxd4 Nf6 5. Nc3 e5 6. Ndb5 d6 7. Bg5 a6 {[%cal Ba7a6,Ba6a5,Ba5a4,Ba4b3][%mdl 32]} 8. Na3 b5 9. Nd5 Be7 10. Bxf6 Bxf6 11. c4 b4 12. Nc2 a5 13. g3 g6 14. h4 Bg7 15. h5 {The position is equal.} O-O 16. Bh3 Be6 17. Kf1 a4 18. Kg2 (18. Ncxb4 Nxb4 19. Nxb4 (19. Bxe6 fxe6 20. Nxb4 Qb6 $15) 19... Bxc4+ 20. Kg1 Qb6 $11) 18... b3 19. axb3 axb3 20. Nce3 {Black must now prevent hxg6. Excellent horsemanship.} Bxh3+ (20... Rxa1 $11 21. Qxa1 f5) 21. Rxh3 $16 {Strongly threatening Rxa8.} Ra2 22. hxg6 (22. Rxa2 $16 bxa2 23. Rh1) 22... fxg6 $11 23. Rb1 {[%cal Od5c3]} Nd4 24. Qg4 $1 Rf7 25. f4 $2 (25. Qh4 $11 {and White is okay.} Bf6 26. Qg4) 25... Qa5 $2 (25... exf4 $19 26. gxf4 Qe8) 26. Qd1 (26. Qc8+ $11 {remains equal.} Bf8 27. Ng4 Qd2+ 28. Kh1) 26... exf4 {Black is more active.} 27. gxf4 {[%cal Of4f5]} Ne6 {[%csl LRb2,LRf4]} 28. Qxb3 Qd2+ {Dancing on a razor blade.} (28... Qa8 $17 29. Kh2 Rb7 (29... Nxf4 30. Nxf4 Rxf4 31. c5+ Kh8 32. cxd6 $15)) 29. Kh1 $1 Rxb2 30. Rxb2 Bxb2 (30... Qxb2 {simplifies} 31. Qxb2 Bxb2 32. f5 Nc5) 31. Qd1 {Repels Qe1+} ({Better is} 31. Qb8+ $11 Nf8 32. c5 (32. Qxd6 Bd4 $11)) 31... Qxd1+ $15 32. Nxd1 Bc1 33. f5 $1 Ng5 34. Rh4 gxf5 35. exf5 Kg7 36. N1e3 Bxe3 37. Nxe3 $11 {[%mdl 4096] Endgame. KRN-KRN} Ra7 38. Kg2 Kf6 39. Rd4 Ke5 40. Rd5+ Kf4 41. Nd1 Ne4 42. f6 $1 Rd7 43. Rd4 {[#] Nc3 would now be deadly.} Ke5 {[%csl LRd4,LRf6]} 44. Rd5+ Ke6 45. Ne3 Nxf6 46. Ra5 Rc7 47. Kf3 Rf7 48. Rf5 (48. Ng2 $11) 48... Ra7 49. Rb5 Ra3 50. Kf4 Rc3 51. Rf5 $2 {[%mdl 8192] [#]} (51. Rb2 $11) 51... Rxe3 $1 {[%mdl 512] Weighted Error Value: White=0.42/Black=0.22 (precise) .  Loses game:     	White=2     	---        Missed win:     	---       	Black=1      Mistake:       	White=4     	Black=2      Inaccurate:     	White=4     	Black=5      OK:         	White=10    	Black=13     Strong:       	White=4     	---        Brilliant:      	---       	Black=1} 0-1

[Event "45th FIDE Olympiad 2024"]
[Site "Budapest"]
[Date "2024.09.15"]
[Round "5.73"]
[White "Fedoseev, Vladimir"]
[Black "Sadorra, Julio Catalino"]
[Result "0-1"]
[ECO "D52"]
[WhiteElo "2692"]
[BlackElo "2542"]
[Annotator "TA"]
[PlyCount "106"]
[EventDate "2024.09.05"]
[EventType "team-tourn"]
[EventCountry "HUN"]
[SourceTitle "playchess.com"]
[Source "ChessBase"]
[SourceQuality "1"]
[WhiteTeam "Slovenia"]
[BlackTeam "Philippines"]
[WhiteTeamCountry "SLO"]
[BlackTeamCountry "PHI"]
[TimeControl "40/5400+30:1800+30"]

{[%evp 21,106,26,25,28,34,41,29,35,30,38,61,63,67,69,79,85,100,101,129,80,110,92,111,63,39,65,52,-106,-108,-91,-91,-216,-192,-487,-466,-450,-407,-606,-600,-1336,-1312,-1330,-1341,-2029,-635,-683,-510,-528,-526,-528,-525,-531,-515,-559,-587,-652,-656,-658,-502,-514,0,-670,-670,-797,-796,-1025,-939,-1024,-1020,-1036,-1029,-991,-1016,-1148,-1156,-1152,-863,-1146,-1082,-1415,-1390,-1897,-1993,-2093,-2365,-29977,-29975]} 1. d4 d5 2. c4 e6 3. Nc3 Nf6 4. Bg5 c6 5. e3 Nbd7 6. Nf3 Qa5 7. Nd2 Bb4 8. Qc2 dxc4 9. Bxf6 Nxf6 10. Nxc4 Qc7 11. Bd3 O-O 12. O-O Be7 13. Rac1 c5 14. dxc5 {White has an edge.} Qxc5 15. Ne4 Qh5 16. Rfd1 b6 17. Be2 Qh4 18. Bf3 Rb8 19. g3 Qh3 20. Ne5 (20. Ncd6 $142 Bxd6 21. Nxf6+ (21. Rxd6 Ng4 $14) (21. Nxd6 e5 $16) 21... gxf6 22. Rxd6) 20... Qf5 21. Nc6 {[%csl LRa7,LRb8,LRe7]} Qxf3 22. Nd2 {A dynamic duo of knights.} (22. Ng5 $16 Qh5 23. Nxe7+ Kh8 24. Nxc8 Qxg5 25. Nxa7) 22... Qh5 $1 $14 23. Nxb8 {Hoping for Nc6.} Bb7 {[%cal Of6g4] Strongly threatening ...Ng4!} 24. Qc7 $2 {[#]} (24. Nc6 $14 {stays ahead.} Bc5 25. b4 (25. Nxa7 $2 Qh3 $19)) 24... Ng4 $1 $17 {The board is on fire. Black continues to play with concentration.} 25. h4 {[#]} (25. Qxb7 $2 Qxh2+ 26. Kf1 Qxf2#) 25... Bxh4 $1 26. Qxb7 (26. Kf1 $17 {is the only way for White.} Bd5 27. Nd7 (27. gxh4 Qxh4 28. Qg3 Qxg3 $17)) 26... Bxg3 $1 $40 {[%mdl 128] ( -> ...Qh2+). Black attacks with force.} 27. Qh1 (27. Kf1 Nxf2 (27... Rxb8 28. Rc8+ Rxc8 29. Qxc8#) (27... Bxb8 28. a4 $17) 28. Re1) 27... Bxf2+ 28. Kg2 Bh4 (28... Nxe3+ 29. Kxf2 Nxd1+ 30. Rxd1 $17) 29. Nf1 (29. Re1 $142 Nf2 (29... Rxb8 $2 30. Nf3 $19) 30. Qh2) 29... Qg5 30. Nd7 Nf2+ 31. Kh2 Nxh1 32. Nxf8 Kxf8 ({Weaker is} 32... Nf2 33. Rc8 Qe5+ (33... Nxd1 $2 {too greedy.} 34. Nxe6+ $18) 34. Kg1 Nh3+ (34... Nxd1 35. Nxe6+) (34... Qg5+ 35. Kh2 $15) 35. Kg2 Nf4+ (35... Qxb2+ $2 36. Rd2 $18) 36. exf4 Qe2+ (36... Qxb2+ $2 37. Rd2 $18) 37. Kg1 Qg4+ (37... Qxd1 38. Nd7+) (37... Bf2+ 38. Kh1 $11) 38. Kh1 Qf3+ (38... Qxd1 39. Nd7+) 39. Kg1 Qf2+ (39... Qxd1 40. Nd7+) 40. Kh1 Qf3+ (40... Qxf4 41. Nxe6+) 41. Kg1 Qg4+ (41... Qxd1 42. Nd7+) 42. Kh1 Qf3+ $11 (42... Qxd1 43. Nd7+)) (32... Bf2 $142 33. Rc8 Qg1+ 34. Kh3 h5 (34... Bxe3 35. Nxe6#) 35. Nxe6+ Kh7 36. Nxg7 Be1 37. Rc2 Qxf1+ 38. Rg2 Nf2+ 39. Kh2 Ng4+ (39... Nxd1 40. Rg5 Qf2+ 41. Kh1 Qh4+ 42. Kg2 Qxg5+ 43. Kf1 Qxe3 44. Kg2 Qg3+ 45. Kh1 Nf2#) (39... Qh1+ 40. Kg3 Nxd1+ 41. Kf3 Qf1+ 42. Ke4 Qxg2+ 43. Ke5 Kxg7 44. Kd6 Bg3+ 45. Kd7 Qd5+ 46. Kc8 Qc6+ 47. Kd8 Bh4#) 40. Rxg4 hxg4 41. Nf5 Qxf5 42. Rd2 Bxd2 43. Kg3 Qf3+ (43... Bxe3 $2 44. Kh2 Qh5+ 45. Kg3 Qh3#) 44. Kh4 Kg6 45. b3 Qh3#) 33. Kxh1 g6 34. Rd2 Qf5 35. Kg1 Qe5 36. Rc4 Bg5 37. Kf2 Kg7 38. b3 h5 39. Rd7 Qb2+ 40. Nd2 Qe5 41. Nf1 Qf5+ 42. Ke2 Qh3 43. Kf2 Qh1 44. Ke2 b5 45. Rc1 Qg2+ 46. Kd3 h4 47. Nd2 Qf2 48. Rf1 Qxe3+ 49. Kc2 Bf4 {...h3 would now be deadly.} 50. b4 g5 {Threatens to win with ...Qe2.} 51. Rf3 Qe2 52. a3 e5 {White must now prevent ...e4.} 53. Rc3 e4 {Weighted Error Value: White=0.83/Black=0.29 (precise) .  Mistake:       	White=6     	---        Inaccurate:     	White=1     	Black=1      OK:         	White=9     	Black=6      Best:        	White=1     	Black=2      Strong:       	---       	Black=4} 0-1

[Event "45th FIDE Olympiad 2024"]
[Site "Budapest"]
[Date "2024.09.15"]
[Round "5.73"]
[White "D`amico, Nicola"]
[Black "Fancy, Stuart"]
[Result "0-1"]
[ECO "B22"]
[WhiteElo "1801"]
[BlackElo "1921"]
[PlyCount "44"]
[EventDate "2024.09.05"]
[EventType "team-tourn"]
[EventCountry "HUN"]
[WhiteTeam "San Marino"]
[BlackTeam "Papua New Guinea"]
[WhiteTeamCountry "SMR"]
[BlackTeamCountry "PNG"]
[TimeControl "40/5400+30:1800+30"]

1. e4 c5 2. Nf3 e6 3. c3 Nf6 4. e5 Nd5 5. d4 cxd4 6. cxd4 Nc6 7. a3 Be7 8. Bc4 Nb6 9. Bd3 d6 10. O-O O-O 11. Nc3 Nd5 12. Ne4 dxe5 13. dxe5 Qc7 14. Re1 h6 15. Ng3 Bc5 16. Bb1 Nce7 17. Qd3 Ng6 18. Nh4 Nde7 19. Nh5 Qb6 20. Be3 Bxe3 21. Rxe3 Qxb2 22. Ra2 Qc1+ {0-} 0-1

[Event "45th FIDE Olympiad 2024"]
[Site "Budapest"]
[Date "2024.09.15"]
[Round "5.74"]
[White "Quizon, Daniel"]
[Black "Demchenko, Anton"]
[Result "1/2-1/2"]
[ECO "C77"]
[WhiteElo "2490"]
[BlackElo "2597"]
[Annotator "TA"]
[PlyCount "166"]
[EventDate "2024.09.05"]
[EventType "team-tourn"]
[EventCountry "HUN"]
[SourceTitle "playchess.com"]
[Source "ChessBase"]
[SourceQuality "1"]
[WhiteTeam "Philippines"]
[BlackTeam "Slovenia"]
[WhiteTeamCountry "PHI"]
[BlackTeamCountry "SLO"]
[TimeControl "40/5400+30:1800+30"]

{[%evp 68,165,-8,-8,-14,-15,0,0,0,0,0,0,0,0,0,0,0,0,0,0,0,0,0,0,0,0,0,0,0,0,0,0,0,0,0,0,0,0,0,0,0,0,0,0,0,0,0,0,0,0,0,0,0,0,0,0,0,0,0,0,0,0,0,0,0,0,0,0,0,0,0,0,0,0,0,0,0,0,0,0,0,0,0,0,0,0,0,0,0,0,0,0,0,0,0,0,0,0,0,0]} 1. e4 e5 2. Nf3 Nc6 3. Bb5 a6 4. Ba4 Nf6 5. d3 d6 6. c3 g6 7. O-O Bg7 8. Nbd2 O-O 9. Re1 h6 {C77: Ruy Lopez: 3...a6 4 Ba4 Nf6, unusual lines.} 10. Nf1 Nh7 11. d4 $146 ({Predecessor:} 11. Ng3 Bd7 12. Bd2 f5 13. exf5 gxf5 14. Nh5 Be8 15. Nxg7 Kxg7 16. c4 Bh5 17. Bc3 {0-1 Cederstam Barsk,C (2263)-Falkevall,A (2325) Uppsala Weekend Gp1 2024 (5)}) 11... exd4 12. Nxd4 Bd7 13. Nxc6 Bxc6 14. Bxc6 bxc6 15. Qa4 Qd7 16. Be3 Rfb8 17. Re2 Nf8 18. Bd4 c5 19. Qxd7 Nxd7 20. Bxg7 Kxg7 21. Ne3 a5 22. a4 Nb6 23. Nd5 Rb7 24. Nxb6 Rxb6 25. Rd1 Re8 26. Rdd2 f5 27. exf5 Rxe2 28. Rxe2 gxf5 29. f4 Kf6 30. Rd2 Rb8 31. Kf2 h5 32. g3 Ke6 33. h3 d5 34. g4 hxg4 35. hxg4 fxg4 36. Kg3 Rg8 37. Re2+ Kf6 38. Re5 c6 39. Rh5 c4 40. Rh2 Kf5 41. Re2 Kf6 42. Rh2 Kf5 43. Re2 Rh8 44. Re5+ Kf6 45. Re2 c5 ({Don't do} 45... Rg8 46. Rh2 $17) 46. Re5 d4 47. cxd4 $1 cxd4 48. Rd5 d3 49. Kxg4 Rh1 50. Kf3 $1 Re1 51. Rd4 Ke6 52. Rd8 Rb1 53. Rd4 Rxb2 54. Rxc4 Kd5 55. Rc8 Re2 56. f5 Kd4 57. Rd8+ Kc4 58. f6 Re6 59. f7 Rf6+ 60. Ke3 Rxf7 61. Rd4+ Kb3 62. Kxd3 Rf3+ 63. Kd2 Rf2+ 64. Kd3 Rf1 65. Kd2 Rf2+ 66. Kd3 Ra2 67. Rh4 Ra3 68. Kd2 Kb2 69. Rg4 Ra2 70. Kd3 Kb3 71. Rh4 Rg2 72. Rf4 Rg5 73. Rd4 Rc5 74. Rh4 Rd5+ 75. Rd4 Rxd4+ 76. Kxd4 Kxa4 77. Kc3 Ka3 78. Kc2 Ka2 79. Kc1 a4 (79... Ka1 $5) 80. Kc2 a3 81. Kc1 Kb3 (81... Ka1 $5) 82. Kb1 a2+ 83. Ka1 Ka3 1/2-1/2

[Event "45th FIDE Olympiad 2024"]
[Site "Budapest"]
[Date "2024.09.15"]
[Round "5.74"]
[White "McCoy, Tom"]
[Black "Righi, Ezio"]
[Result "1/2-1/2"]
[ECO "B22"]
[WhiteElo "1883"]
[BlackElo "1909"]
[PlyCount "60"]
[EventDate "2024.09.05"]
[EventType "team-tourn"]
[EventCountry "HUN"]
[WhiteTeam "Papua New Guinea"]
[BlackTeam "San Marino"]
[WhiteTeamCountry "PNG"]
[BlackTeamCountry "SMR"]
[TimeControl "40/5400+30:1800+30"]

1. e4 c5 2. c3 Nf6 3. e5 Nd5 4. Nf3 d6 5. d4 cxd4 6. cxd4 Nc6 7. Bc4 dxe5 8. dxe5 Ndb4 9. Qxd8+ Nxd8 10. Na3 Bg4 11. Nd4 Rc8 12. Bd2 e6 13. Rc1 Ndc6 14. Nxc6 Nxc6 15. Bb5 Bxa3 16. bxa3 O-O 17. Bxc6 Rxc6 18. Rxc6 bxc6 19. Bb4 c5 20. Bxc5 Rc8 21. Be3 Rc3 22. O-O Rxa3 23. Rb1 h6 24. Rb2 Bf5 25. Bc5 Ra5 26. Bd6 Be4 27. f3 Bd5 28. a3 Kh7 29. Kf2 Ra6 30. Rc2 Rc6 1/2-1/2

[Event "45th FIDE Olympiad 2024"]
[Site "Budapest"]
[Date "2024.09.15"]
[Round "5.75"]
[White "Subelj, Jan"]
[Black "Bersamina, Paulo"]
[Result "1/2-1/2"]
[ECO "B01"]
[WhiteElo "2498"]
[BlackElo "2425"]
[Annotator "TA"]
[PlyCount "61"]
[EventDate "2024.09.05"]
[EventType "team-tourn"]
[EventCountry "HUN"]
[SourceTitle "playchess.com"]
[Source "ChessBase"]
[SourceQuality "1"]
[WhiteTeam "Slovenia"]
[BlackTeam "Philippines"]
[WhiteTeamCountry "SLO"]
[BlackTeamCountry "PHI"]
[TimeControl "40/5400+30:1800+30"]

{[%evp 13,61,17,23,27,39,10,38,27,29,32,39,12,40,-11,-20,-18,-17,-18,-28,-19,0,0,0,-15,0,0,16,20,17,10,39,42,59,66,109,102,95,14,16,11,8,13,15,11,31,10,10,10,15,0]} 1. e4 d5 2. exd5 Qxd5 3. Nc3 Qa5 4. d4 Nf6 5. Bc4 Bf5 6. Nf3 e6 7. O-O c6 8. Nh4 Bg6 9. h3 Be7 10. Nxg6 {White is slightly better.} hxg6 11. Bf4 Nbd7 12. Re1 O-O 13. Qd2 (13. a3 $14) 13... Bb4 $11 14. a3 Bxc3 15. Qxc3 Qxc3 16. bxc3 Nd5 17. Bd2 b5 18. Bd3 N7b6 19. a4 Nc4 20. Bxc4 bxc4 21. a5 c5 22. Re4 Rfc8 23. Ra4 f5 24. Rxe6 cxd4 25. Rd6 ({White should try} 25. cxd4 $16 {[%cal Oe6e5] Threatens to win with Re5!} Rab8 26. Re5 (26. Rxg6 Rb2 $14)) 25... dxc3 26. Rxd5 cxd2 27. Rxd2 {KRR-KRR} Rab8 28. Rd4 Rb5 29. Raxc4 Rxc4 30. Rxc4 Rxa5 31. Rc7 {Weighted Error Value: White=0.15 (very precise) /Black=0.10 (very precise) .  Mistake:       	White=2     	---        Inaccurate:     	White=2     	Black=4      OK:         	White=6     	Black=8      Best:        	White=2     	Black=2} 1/2-1/2

[Event "45th FIDE Olympiad 2024"]
[Site "Budapest"]
[Date "2024.09.15"]
[Round "5.75"]
[White "Grassi, Enrico"]
[Black "Jones, Rupert"]
[Result "0-1"]
[ECO "B13"]
[WhiteElo "1965"]
[BlackElo "1849"]
[PlyCount "88"]
[EventDate "2024.09.05"]
[EventType "team-tourn"]
[EventCountry "HUN"]
[WhiteTeam "San Marino"]
[BlackTeam "Papua New Guinea"]
[WhiteTeamCountry "SMR"]
[BlackTeamCountry "PNG"]
[TimeControl "40/5400+30:1800+30"]

1. e4 c6 2. d4 d5 3. exd5 cxd5 4. c4 Nf6 5. Nc3 Nc6 6. Nf3 Bg4 7. cxd5 Nxd5 8. Qb3 Bxf3 9. gxf3 e6 10. Qxb7 Nxd4 11. Bb5+ Nxb5 12. Qc6+ Ke7 13. Nxd5+ Qxd5 14. Qxd5 exd5 15. O-O f6 16. a4 Nc7 17. Be3 Kd7 18. Rfd1 Bd6 19. Rac1 Rab8 20. Bxa7 Rxb2 21. a5 Rb5 22. Bb6 Re8 23. Rb1 Rxb1 24. Rxb1 Ra8 25. Rc1 Na6 26. Rd1 Kc6 27. Rc1+ Bc5 28. Re1 Kd6 29. Rb1 Rb8 30. Bxc5+ Kxc5 31. Rc1+ Kd6 32. Rc2 Rb5 33. Rc8 Rxa5 34. Rg8 d4 35. Kf1 g6 36. Ke2 Rh5 37. Kd3 Nc5+ 38. Kxd4 Ne6+ 39. Ke3 f5 40. Ra8 Rxh2 41. Ra6+ Ke5 42. f4+ Kf6 43. Kf3 Rh4 44. Kg3 Rg4+ {0-} 0-1

[Event "45th FIDE Olympiad 2024"]
[Site "Budapest"]
[Date "2024.09.15"]
[Round "5.76"]
[White "Garcia, Jan Emmanuel"]
[Black "Sebenik, Matej"]
[Result "1/2-1/2"]
[ECO "D34"]
[WhiteElo "2380"]
[BlackElo "2515"]
[Annotator "TA"]
[PlyCount "61"]
[EventDate "2024.09.05"]
[EventType "team-tourn"]
[EventCountry "HUN"]
[SourceTitle "playchess.com"]
[Source "ChessBase"]
[SourceQuality "1"]
[WhiteTeam "Philippines"]
[BlackTeam "Slovenia"]
[WhiteTeamCountry "PHI"]
[BlackTeamCountry "SLO"]
[TimeControl "40/5400+30:1800+30"]

{[%evp 24,61,18,3,0,5,15,8,30,25,21,22,16,6,36,6,22,0,2,0,0,0,93,92,94,84,129,14,17,12,22,0,0,0,0,0,0,0,0,0]} 1. Nf3 d5 2. d4 e6 3. c4 c5 4. cxd5 exd5 5. g3 Nf6 6. Bg2 Nc6 7. O-O Be7 8. Nc3 {[%cal Bb1c3,Bc3a4,Ba4c5][%mdl 32]} O-O 9. dxc5 Bxc5 10. Na4 Be7 11. Be3 Re8 12. Rc1 Bg4 13. Nc5 Qb6 14. Nb3 Qa6 15. a3 h6 16. Qd3 $1 Qxd3 17. exd3 Bf5 18. Rc3 Rac8 19. Rfc1 Ng4 20. Bd4 (20. Nbd4 $5 Nxe3 21. fxe3 $11) 20... Nxd4 21. Nfxd4 Rxc3 22. Rxc3 Bg6 (22... Bf6 $1 $11 {keeps the balance.} 23. Nxf5 Re1+ 24. Bf1 Bxc3 25. bxc3 Nxh2 26. Kxh2 Rxf1) 23. Bxd5 $16 Bf6 24. Bxb7 Rd8 25. Rc8 (25. h3 $1 $16) 25... Rxc8 $1 $11 {The position is equal.} 26. Bxc8 Ne5 27. Nb5 Nf3+ 28. Kg2 Ne1+ 29. Kg1 Nf3+ 30. Kg2 Ne1+ 31. Kg1 {Weighted Error Value: White=0.21 (precise) /Black=0.13 (very precise) .  Mistake:       	White=1     	Black=1      Inaccurate:     	White=1     	Black=2      OK:         	White=4     	Black=7      Best:        	White=2     	Black=1      Strong:       	White=1     	Black=1} 1/2-1/2

[Event "45th FIDE Olympiad 2024"]
[Site "Budapest"]
[Date "2024.09.15"]
[Round "5.77"]
[White "Brkic, Ante"]
[Black "Maksimovic, Bojan"]
[Result "1-0"]
[ECO "B41"]
[WhiteElo "2642"]
[BlackElo "2503"]
[Annotator "TA"]
[PlyCount "83"]
[EventDate "2024.09.05"]
[EventType "team-tourn"]
[EventCountry "HUN"]
[SourceTitle "playchess.com"]
[Source "ChessBase"]
[SourceQuality "1"]
[WhiteTeam "Croatia"]
[BlackTeam "Bosnia & Herzegovina"]
[WhiteTeamCountry "CRO"]
[BlackTeamCountry "BIH"]
[TimeControl "40/5400+30:1800+30"]

{[%evp 13,83,34,63,42,30,30,31,13,17,18,10,16,4,0,78,70,68,65,67,60,62,55,66,57,47,22,37,37,26,23,147,150,147,108,267,278,236,259,289,314,304,160,161,157,163,166,181,109,220,211,216,186,216,210,414,395,558,534,577,582,577,592,608,611,544,564,572,568,887,876,1345,1400]} 1. e4 c5 2. Nf3 e6 3. d4 cxd4 4. Nxd4 a6 5. c4 Nf6 6. Nc3 Qc7 7. a3 b6 8. f4 Bb7 9. Bd3 Nc6 10. Nxc6 {White is slightly better.} Qxc6 11. Qe2 Bc5 12. Be3 Bxe3 13. Qxe3 Qc5 (13... O-O $11) 14. Qxc5 $16 bxc5 15. e5 $1 Ng4 (15... Bxg2 $2 16. Rg1 Nh5 17. Rxg2 $18) 16. O-O Rb8 17. Rae1 h5 18. Re2 Ke7 {[%cal Be8e7,Be7f8,Bf8g7,Bg7g6][%mdl 32]} 19. h3 Nh6 20. Na4 Rhc8 21. f5 {[%cal Bf4f5,Bf5f6][%mdl 32]} Ba8 {[#]} (21... exf5 $11 22. Bxf5 Nxf5 23. Rxf5 g6) 22. f6+ $1 Kf8 23. Rf4 {[%cal Bf1f4,Bf4h4,Bh4h5,Bh5h8][%mdl 32] White is much more active.} Rc7 $2 {[#]} (23... g6 $16) 24. fxg7+ $1 $18 Kxg7 25. Rh4 Rb3 26. Rd2 Nf5 27. Bxf5 (27. Rxh5 $18 Ne7 28. Rg5+ Kf8 29. Bh7) 27... exf5 $16 28. Rxh5 Kg6 {Prevents Rg5+} 29. Rh8 Be4 30. Kf2 ({White should try} 30. Rg8+ $18 Kh7 31. Rd8) 30... Rd3 (30... Kg7 $16 {keeps fighting.} 31. Rh4 (31. Rd8 f4 $16) 31... Rc8) 31. Rxd3 Bxd3 $18 {[%mdl 4096] Endgame. KRB-KRN} 32. b3 f4 33. Kf3 Bc2 $2 (33... Kf5 34. Rh5+ Kg6) 34. Kxf4 Bxb3 (34... f6 {is a better defense.} 35. Rb8 fxe5+ 36. Kxe5 Rc6) 35. Nb6 {White is clearly winning.} Rb7 36. Nd5 {Threatening mate with Rg8+.} ({But not} 36. Rg8+ $2 Kh7 37. e6 dxe6 $19 (37... Kxg8 38. exd7 $16) (37... fxe6 $2 38. Rd8 $19)) 36... f6 37. exf6 Bxc4 38. Rg8+ Kf7 39. Rg7+ Kf8 40. Ne7 {Black must now prevent h4.} Rb2 41. g4 Bf7 42. Rh7 {Weighted Error Value: White=0.10 (very precise) /Black=0.43.  Mistake:       	White=2     	Black=6      Inaccurate:     	---       	Black=2      OK:         	White=14    	Black=14     Best:        	White=4     	Black=2      Strong:       	White=3     	---} 1-0

[Event "45th FIDE Olympiad 2024"]
[Site "Budapest"]
[Date "2024.09.15"]
[Round "5.77"]
[White "Kudakwashe, Chinake"]
[Black "Asante, Debesai Zerabruk"]
[Result "1/2-1/2"]
[ECO "A45"]
[WhiteElo "1859"]
[BlackElo "1908"]
[PlyCount "105"]
[EventDate "2024.09.05"]
[EventType "team-tourn"]
[EventCountry "HUN"]
[WhiteTeam "Cayman Islands"]
[BlackTeam "Eritrea"]
[WhiteTeamCountry "CAY"]
[BlackTeamCountry "ERI"]
[TimeControl "40/5400+30:1800+30"]

1. d4 Nf6 2. Nc3 g6 3. Bf4 d5 4. e3 Bg7 5. Nb5 Na6 6. h4 c6 7. Na3 Ne4 8. f3 Qa5+ 9. c3 Nd6 10. Nc2 Qb6 11. b4 Nc7 12. Bd3 Bf5 13. Bxd6 Bxd3 14. Qxd3 exd6 15. Ne2 h5 16. a4 Ne6 17. f4 O-O-O 18. a5 Qc7 19. b5 c5 20. O-O Qe7 21. g3 Bh6 22. a6 b6 23. e4 Rhe8 24. exd5 Nc7 25. Rae1 Qe4 26. Qxe4 Rxe4 27. c4 Rde8 28. Nc3 Rxe1 29. Rxe1 Rxe1+ 30. Nxe1 Bg7 31. Nf3 cxd4 32. Ne2 d3 33. Nc1 Bc3 34. Nxd3 f5 35. Kf1 Ne8 36. Ke2 Nf6 37. Nf2 Kd7 38. Kd3 Bb2 39. Nd1 Ba1 40. Nf2 Bb2 41. Ng5 Ng4 42. Nxg4 hxg4 43. Ne6 Ke7 44. Nc7 Ba3 45. Ne6 Bb2 46. Ke2 Bc3 47. Ke3 Bb4 48. h5 gxh5 49. Ng7 Kf6 50. Nxh5+ Kg6 51. Kf2 Kxh5 52. Kg2 Bc5 53. Kh2 1/2-1/2

[Event "45th FIDE Olympiad 2024"]
[Site "Budapest"]
[Date "2024.09.15"]
[Round "5.78"]
[White "Stojanovic, Dalibor"]
[Black "Martinovic, Sasa"]
[Result "1/2-1/2"]
[ECO "C07"]
[WhiteElo "2448"]
[BlackElo "2563"]
[Annotator "TA"]
[PlyCount "71"]
[EventDate "2024.09.05"]
[EventType "team-tourn"]
[EventCountry "HUN"]
[SourceTitle "playchess.com"]
[Source "ChessBase"]
[SourceQuality "1"]
[WhiteTeam "Bosnia & Herzegovina"]
[BlackTeam "Croatia"]
[WhiteTeamCountry "BIH"]
[BlackTeamCountry "CRO"]
[TimeControl "40/5400+30:1800+30"]

{[%evp 14,71,5,0,0,0,0,0,0,7,16,18,30,20,27,0,0,-8,0,0,0,-8,0,-7,0,0,0,0,0,0,0,0,0,0,0,0,0,0,0,0,0,-8,-7,-8,0,0,8,8,8,8,8,8,8,8,8,8,8,0,0,0]} 1. e4 e6 2. d4 d5 3. Nd2 c5 4. Ngf3 cxd4 5. Nxd4 Nc6 6. Bb5 Bd7 7. Nxc6 bxc6 8. Bd3 Bd6 9. Qe2 e5 10. exd5 cxd5 11. c4 Nf6 {[%cal Bg8f6,Bf6d5,Bd5f4][%mdl 32]} 12. cxd5 O-O 13. O-O $1 Re8 14. Bb5 Nxd5 {[#] Hoping for ...Nf4. The position is equal.} 15. Bxd7 Qxd7 16. Ne4 {Dodges Bc5} Be7 17. Rd1 Qe6 18. Bg5 Rad8 19. Bxe7 Nf4 20. Qf3 Qxe7 21. Rxd8 Rxd8 22. Rd1 {Repels Rd3} h6 23. g3 Ne6 24. Rxd8+ Qxd8 $11 {[%mdl 4096] Endgame. KQN-KQN} 25. Nc3 Qd4 26. Qa8+ Kh7 27. Qe4+ Qxe4 28. Nxe4 {KN-KN} f5 29. Nd6 Kg6 30. b4 Kf6 31. b5 Nc5 32. Nc8 a6 33. bxa6 Nxa6 34. Nb6 e4 35. Kf1 g5 36. Ke2 {An even fight not without its subleties.   Weighted Error Value: White=0.02 (flawless) /Black=0.02 (flawless) .  Inaccurate:     	White=1     	---        OK:         	White=17    	Black=13     Strong:       	White=1     	---} 1/2-1/2